[Event "*** SCC Grand Prix: Titled Tuesday Blitz"]
[Site "Chess.com"]
[Date "2020.06.02"]
[Round "1"]
[White "Jadeit90"]
[Black "DeGrootteZ"]
[Result "0-1"]
[WhiteElo "2287"]
[BlackElo "2625"]
[TimeControl "180+1"]
[EndTime "10:06:16 PDT"]
[Termination "DeGrootteZ won by resignation"]

1. e4 {[%clk 0:03:00.1]} 1... c5 {[%clk 0:02:58.3]} 2. Nc3 {[%clk 0:03:00.4]}
2... d6 {[%clk 0:02:57.8]} 3. g3 {[%clk 0:03:01.3]} 3... Nc6 {[%clk 0:02:57.2]}
4. Bg2 {[%clk 0:03:02.2]} 4... g6 {[%clk 0:02:57.1]} 5. d3 {[%clk 0:03:03.1]}
5... Bg7 {[%clk 0:02:57.5]} 6. Be3 {[%clk 0:03:04]} 6... e6 {[%clk 0:02:54.9]}
7. Qd2 {[%clk 0:03:04.3]} 7... Nge7 {[%clk 0:02:55.2]} 8. Bh6 {[%clk 0:03:04.5]}
8... Bxh6 {[%clk 0:02:32.4]} 9. Qxh6 {[%clk 0:03:05.4]} 9... Ng8 {[%clk
0:02:26.4]} 10. Qg7 {[%clk 0:03:04.6]} 10... Qf6 {[%clk 0:02:25.2]} 11. Qxf6
{[%clk 0:03:04.6]} 11... Nxf6 {[%clk 0:02:26.1]} 12. Nge2 {[%clk 0:03:05.3]}
12... a6 {[%clk 0:02:23.3]} 13. O-O-O {[%clk 0:03:05.4]} 13... e5 {[%clk
0:02:20.4]} 14. f4 {[%clk 0:03:04.9]} 14... Be6 {[%clk 0:02:16.2]} 15. h3 {[%clk
0:03:04.8]} 15... Nd7 {[%clk 0:01:59.1]} 16. g4 {[%clk 0:03:04.9]} 16... f6
{[%clk 0:01:58.7]} 17. f5 {[%clk 0:03:01.9]} 17... Bf7 {[%clk 0:01:56.6]} 18. h4
{[%clk 0:03:01.5]} 18... b5 {[%clk 0:01:48.5]} 19. Ng3 {[%clk 0:03:00.3]} 19...
Ke7 {[%clk 0:01:42.3]} 20. Nce2 {[%clk 0:02:57.9]} 20... b4 {[%clk 0:01:38.1]}
21. Kb1 {[%clk 0:02:55.4]} 21... a5 {[%clk 0:01:37.6]} 22. g5 {[%clk 0:02:54]}
22... Rhf8 {[%clk 0:01:30.5]} 23. Rdf1 {[%clk 0:02:52.2]} 23... Bg8 {[%clk
0:01:29.2]} 24. fxg6 {[%clk 0:02:48.6]} 24... hxg6 {[%clk 0:01:30.1]} 25. gxf6+
{[%clk 0:02:46.8]} 25... Nxf6 {[%clk 0:01:29]} 26. h5 {[%clk 0:02:46.9]} 26...
Nxh5 {[%clk 0:01:29]} 27. Nxh5 {[%clk 0:02:46]} 27... gxh5 {[%clk 0:01:27.9]}
28. Rxh5 {[%clk 0:02:44.8]} 28... Rxf1+ {[%clk 0:01:28.1]} 29. Bxf1 {[%clk
0:02:45.1]} 29... Rf8 {[%clk 0:01:28.6]} 30. Rh1 {[%clk 0:02:44.5]} 30... Nd4
{[%clk 0:01:18]} 31. Nxd4 {[%clk 0:02:44.1]} 31... cxd4 {[%clk 0:01:18.3]} 32.
Bh3 {[%clk 0:02:43.9]} 32... Rf2 {[%clk 0:01:14.8]} 33. Bf5 {[%clk 0:02:43.3]}
33... a4 {[%clk 0:01:10.3]} 34. b3 {[%clk 0:02:40.1]} 34... a3 {[%clk
0:01:09.7]} 35. Rg1 {[%clk 0:02:39.3]} 35... Bf7 {[%clk 0:01:06.5]} 36. Bg4
{[%clk 0:02:36.9]} 36... Kf6 {[%clk 0:01:03.1]} 37. Bh3 {[%clk 0:02:36.2]} 37...
Bh5 {[%clk 0:00:54.7]} 38. Rf1 {[%clk 0:02:36]} 38... Rxf1+ {[%clk 0:00:54.8]}
39. Bxf1 {[%clk 0:02:36.9]} 39... Kg5 {[%clk 0:00:55]} 40. Bh3 {[%clk
0:02:37.1]} 40... Kf4 {[%clk 0:00:55]} 41. Kc1 {[%clk 0:02:36.4]} 41... Ke3
{[%clk 0:00:53.1]} 42. Be6 {[%clk 0:02:34.7]} 42... Bf3 {[%clk 0:00:49.3]} 43.
Bd5 {[%clk 0:02:34]} 43... Be2 {[%clk 0:00:44.4]} 44. Bc4 {[%clk 0:02:33.6]}
44... Bf1 {[%clk 0:00:43.9]} 45. Ba6 {[%clk 0:02:32.1]} 45... Bh3 {[%clk
0:00:43.9]} 46. Bc4 {[%clk 0:02:31.7]} 46... Bc8 {[%clk 0:00:41.3]} 47. Bb5
{[%clk 0:02:31.6]} 47... Bb7 {[%clk 0:00:38.9]} 48. Bc4 {[%clk 0:02:31.7]} 48...
Ba8 {[%clk 0:00:37.3]} 49. Bb5 {[%clk 0:02:31.4]} 49... d5 {[%clk 0:00:37]} 50.
exd5 {[%clk 0:02:31.5]} 50... Bxd5 {[%clk 0:00:37.2]} 51. Ba6 {[%clk 0:02:31.7]}
51... Be6 {[%clk 0:00:34.9]} 52. Bb5 {[%clk 0:02:31.7]} 52... Bh3 {[%clk
0:00:35.3]} 53. Ba6 {[%clk 0:02:31.9]} 53... Bf1 {[%clk 0:00:35.8]} 54. Bc4
{[%clk 0:02:16.8]} 54... Be2 {[%clk 0:00:33.7]} 55. Bd5 {[%clk 0:02:14.7]} 55...
Bxd3 {[%clk 0:00:32.6]} 56. cxd3 {[%clk 0:02:14.6]} 56... Kxd3 {[%clk
0:00:33.5]} 57. Bc4+ {[%clk 0:02:15]} 57... Kc3 {[%clk 0:00:23.3]} 58. Bb5
{[%clk 0:02:14.6]} 58... e4 {[%clk 0:00:21.2]} 59. Ba6 {[%clk 0:02:14]} 59... d3
{[%clk 0:00:20]} 60. Bc4 {[%clk 0:02:06.3]} 60... e3 {[%clk 0:00:20.1]} 61. Kd1
{[%clk 0:02:06.7]} 61... e2+ {[%clk 0:00:18.4]} 62. Ke1 {[%clk 0:02:07]} 62...
Kc2 {[%clk 0:00:18.6]} 0-1

[Event "*** SCC Grand Prix: Titled Tuesday Blitz"]
[Site "Chess.com"]
[Date "2020.06.02"]
[Round "1"]
[White "Berant"]
[Black "Muradore"]
[Result "1/2-1/2"]
[WhiteElo "2293"]
[BlackElo "2606"]
[TimeControl "180+1"]
[EndTime "10:06:16 PDT"]
[Termination "Game drawn by repetition"]

1. e4 {[%clk 0:02:58.9]} 1... c6 {[%clk 0:02:59.5]} 2. d4 {[%clk 0:02:58.3]}
2... d5 {[%clk 0:03:00.1]} 3. Nd2 {[%clk 0:02:58.6]} 3... dxe4 {[%clk 0:03:00]}
4. Nxe4 {[%clk 0:02:58.8]} 4... Nf6 {[%clk 0:03:00.9]} 5. Ng3 {[%clk 0:02:58.3]}
5... h5 {[%clk 0:03:00.5]} 6. Bd3 {[%clk 0:02:53.9]} 6... h4 {[%clk 0:02:59.9]}
7. Ne4 {[%clk 0:02:53.8]} 7... Nbd7 {[%clk 0:02:56.4]} 8. Nf3 {[%clk 0:02:53.2]}
8... Nxe4 {[%clk 0:02:54.8]} 9. Bxe4 {[%clk 0:02:53.7]} 9... Nf6 {[%clk
0:02:55.4]} 10. Bd3 {[%clk 0:02:53.8]} 10... h3 {[%clk 0:02:56.3]} 11. g3 {[%clk
0:02:48]} 11... Bg4 {[%clk 0:02:56.2]} 12. Be2 {[%clk 0:02:38.5]} 12... e6
{[%clk 0:02:56]} 13. Bg5 {[%clk 0:02:30.9]} 13... Qa5+ {[%clk 0:02:52.1]} 14.
Bd2 {[%clk 0:02:26.7]} 14... Qb6 {[%clk 0:02:51.1]} 15. c3 {[%clk 0:02:21.7]}
15... O-O-O {[%clk 0:02:45.7]} 16. Ne5 {[%clk 0:02:12.3]} 16... Bxe2 {[%clk
0:02:43.5]} 17. Qxe2 {[%clk 0:02:13.2]} 17... Qc7 {[%clk 0:02:42.8]} 18. O-O-O
{[%clk 0:02:07.3]} 18... Bd6 {[%clk 0:02:40.5]} 19. f4 {[%clk 0:02:05.6]} 19...
Nd5 {[%clk 0:02:33.9]} 20. c4 {[%clk 0:01:52.6]} 20... Nf6 {[%clk 0:02:33.6]}
21. Bc3 {[%clk 0:01:51]} 21... c5 {[%clk 0:02:30.5]} 22. dxc5 {[%clk 0:01:46]}
22... Bxc5 {[%clk 0:02:30.3]} 23. Rxd8+ {[%clk 0:01:30.7]} 23... Rxd8 {[%clk
0:02:28.9]} 24. Rd1 {[%clk 0:01:31.2]} 24... Rxd1+ {[%clk 0:02:18.3]} 25. Kxd1
{[%clk 0:01:32.1]} 25... Bd6 {[%clk 0:02:15.3]} 26. Kc2 {[%clk 0:01:28.3]} 26...
Bxe5 {[%clk 0:02:14.3]} 27. Bxe5 {[%clk 0:01:19.1]} 27... Qc6 {[%clk 0:02:09.9]}
28. Kb3 {[%clk 0:01:01.5]} 28... Qe4 {[%clk 0:01:46.9]} 29. Qd2 {[%clk
0:00:45.1]} 29... Nd7 {[%clk 0:01:42.8]} 30. Qd6 {[%clk 0:00:37.3]} 30... Nxe5
{[%clk 0:01:36.7]} 31. fxe5 {[%clk 0:00:37.4]} 31... Qe3+ {[%clk 0:01:30.3]} 32.
Ka4 {[%clk 0:00:28.9]} 32... Qf3 {[%clk 0:01:25.8]} 33. Qf8+ {[%clk 0:00:26]}
33... Kd7 {[%clk 0:01:25.1]} 34. Qd6+ {[%clk 0:00:25.8]} 34... Ke8 {[%clk
0:01:22.1]} 35. Qb8+ {[%clk 0:00:24.9]} 35... Ke7 {[%clk 0:01:22.1]} 36. Qd6+
{[%clk 0:00:24.3]} 36... Ke8 {[%clk 0:01:21.8]} 37. Qb8+ {[%clk 0:00:23.3]}
37... Kd7 {[%clk 0:01:21.3]} 38. Qd6+ {[%clk 0:00:23.3]} 38... Kc8 {[%clk
0:01:21.3]} 39. Qf8+ {[%clk 0:00:23.4]} 39... Kc7 {[%clk 0:01:20.8]} 40. Qd6+
{[%clk 0:00:23.1]} 40... Kc8 {[%clk 0:01:20.6]} 1/2-1/2

[Event "*** SCC Grand Prix: Titled Tuesday Blitz"]
[Site "Chess.com"]
[Date "2020.06.02"]
[Round "1"]
[White "Vlad_Lukiianchuk"]
[Black "SidArun"]
[Result "1-0"]
[WhiteElo "2561"]
[BlackElo "2210"]
[TimeControl "180+1"]
[EndTime "10:06:17 PDT"]
[Termination "Vlad_Lukiianchuk won by resignation"]

1. d4 {[%clk 0:03:00.9]} 1... Nf6 {[%clk 0:02:59.4]} 2. c4 {[%clk 0:03:01]} 2...
e5 {[%clk 0:02:59.6]} 3. dxe5 {[%clk 0:03:00.1]} 3... Ng4 {[%clk 0:02:59.8]} 4.
Nf3 {[%clk 0:02:54]} 4... Bc5 {[%clk 0:02:59.5]} 5. e3 {[%clk 0:02:52.7]} 5...
Nc6 {[%clk 0:02:59.7]} 6. Nbd2 {[%clk 0:02:47.2]} 6... Ngxe5 {[%clk 0:02:53]} 7.
Nxe5 {[%clk 0:02:46.5]} 7... Nxe5 {[%clk 0:02:52.6]} 8. b3 {[%clk 0:02:45.5]}
8... O-O {[%clk 0:02:50.8]} 9. Bb2 {[%clk 0:02:45.3]} 9... d6 {[%clk 0:02:47.5]}
10. Be2 {[%clk 0:02:42.9]} 10... Qg5 {[%clk 0:02:20.1]} 11. O-O {[%clk
0:02:12.1]} 11... Bh3 {[%clk 0:01:53.5]} 12. Bf3 {[%clk 0:02:11.6]} 12... Nxf3+
{[%clk 0:01:52.9]} 13. Qxf3 {[%clk 0:02:11]} 13... Bg4 {[%clk 0:01:44.3]} 14.
Qg3 {[%clk 0:02:10.7]} 14... Qg6 {[%clk 0:01:42.5]} 15. e4 {[%clk 0:01:51.1]}
15... Bb4 {[%clk 0:01:23.3]} 16. Bc3 {[%clk 0:01:46.9]} 16... a5 {[%clk
0:01:07.9]} 17. a3 {[%clk 0:01:42.9]} 17... Bxc3 {[%clk 0:01:05.2]} 18. Qxc3
{[%clk 0:01:42.1]} 18... f5 {[%clk 0:01:01.1]} 19. h3 {[%clk 0:01:36.3]} 19...
Bh5 {[%clk 0:00:32.1]} 20. exf5 {[%clk 0:01:02.9]} 20... Rxf5 {[%clk 0:00:32]}
21. f4 {[%clk 0:01:01.1]} 21... Be2 {[%clk 0:00:22]} 22. Rf2 {[%clk 0:01:00]}
22... Re8 {[%clk 0:00:11.4]} 23. Re1 {[%clk 0:00:55.3]} 23... Bh5 {[%clk
0:00:11.4]} 24. Rxe8+ {[%clk 0:00:49.8]} 24... Qxe8 {[%clk 0:00:11.3]} 25. g4
{[%clk 0:00:45.7]} 1-0

[Event "*** SCC Grand Prix: Titled Tuesday Blitz"]
[Site "Chess.com"]
[Date "2020.06.02"]
[Round "1"]
[White "Sanyura"]
[Black "beto-betun"]
[Result "1-0"]
[WhiteElo "2520"]
[BlackElo "2145"]
[TimeControl "180+1"]
[EndTime "10:06:17 PDT"]
[Termination "Sanyura won on time"]

1. e4 {[%clk 0:02:52]} 1... c5 {[%clk 0:02:59.1]} 2. Nf3 {[%clk 0:02:50.9]} 2...
d6 {[%clk 0:02:58.7]} 3. d4 {[%clk 0:02:51.5]} 3... cxd4 {[%clk 0:02:57.6]} 4.
Nxd4 {[%clk 0:02:52.4]} 4... Nf6 {[%clk 0:02:57.3]} 5. Nc3 {[%clk 0:02:51.8]}
5... a6 {[%clk 0:02:56.6]} 6. g3 {[%clk 0:02:48.2]} 6... e5 {[%clk 0:02:54.3]}
7. Nb3 {[%clk 0:02:47.6]} 7... Be7 {[%clk 0:02:52.6]} 8. Bg2 {[%clk 0:02:47.3]}
8... O-O {[%clk 0:02:27.6]} 9. O-O {[%clk 0:02:46.8]} 9... Be6 {[%clk
0:02:27.1]} 10. a4 {[%clk 0:02:45.1]} 10... Nbd7 {[%clk 0:02:25.4]} 11. Re1
{[%clk 0:02:45.1]} 11... Rc8 {[%clk 0:02:22.2]} 12. Nd2 {[%clk 0:02:45.1]} 12...
Nb6 {[%clk 0:01:57.3]} 13. a5 {[%clk 0:02:44.1]} 13... Nc4 {[%clk 0:01:56.3]}
14. Nxc4 {[%clk 0:02:43]} 14... Rxc4 {[%clk 0:01:48]} 15. Be3 {[%clk 0:02:43.9]}
15... Qd7 {[%clk 0:01:42.7]} 16. Nd5 {[%clk 0:02:37.4]} 16... Nxd5 {[%clk
0:01:28.8]} 17. exd5 {[%clk 0:02:38.3]} 17... Bf5 {[%clk 0:01:28.3]} 18. c3
{[%clk 0:02:33.8]} 18... Bg6 {[%clk 0:01:16.8]} 19. f4 {[%clk 0:02:29.1]} 19...
Bf6 {[%clk 0:01:07.5]} 20. Qb3 {[%clk 0:01:53.4]} 20... Rfc8 {[%clk 0:01:03.1]}
21. Re2 {[%clk 0:01:49.7]} 21... Bd3 {[%clk 0:00:48.4]} 22. Rd2 {[%clk
0:01:48.8]} 22... e4 {[%clk 0:00:44.1]} 23. Re1 {[%clk 0:01:46]} 23... h5 {[%clk
0:00:38.3]} 24. Bf2 {[%clk 0:01:41.7]} 24... Qf5 {[%clk 0:00:29.4]} 25. Qxb7
{[%clk 0:01:34.8]} 25... R8c7 {[%clk 0:00:21.1]} 26. Qxa6 {[%clk 0:01:21.2]}
26... Kh7 {[%clk 0:00:16.4]} 27. Qb6 {[%clk 0:01:10.9]} 27... h4 {[%clk
0:00:15.4]} 28. a6 {[%clk 0:01:08.7]} 28... hxg3 {[%clk 0:00:14.7]} 29. hxg3
{[%clk 0:01:08.1]} 29... Bd8 {[%clk 0:00:12.2]} 30. a7 {[%clk 0:01:06.7]} 30...
Rc8 {[%clk 0:00:09.6]} 31. Qb8 {[%clk 0:01:06.8]} 31... Qg6 {[%clk 0:00:09.2]}
32. a8=Q {[%clk 0:01:04.5]} 32... Rxb8 {[%clk 0:00:09.6]} 33. Qxb8 {[%clk
0:01:05.4]} 1-0

[Event "*** SCC Grand Prix: Titled Tuesday Blitz"]
[Site "Chess.com"]
[Date "2020.06.02"]
[Round "1"]
[White "AleksanderHnydiuk"]
[Black "memer5334"]
[Result "1-0"]
[WhiteElo "2563"]
[BlackElo "2219"]
[TimeControl "180+1"]
[EndTime "10:06:19 PDT"]
[Termination "AleksanderHnydiuk won by resignation"]

1. d4 {[%clk 0:03:00.7]} 1... d5 {[%clk 0:02:58.2]} 2. c4 {[%clk 0:03:00.2]}
2... c6 {[%clk 0:02:56.9]} 3. Nf3 {[%clk 0:02:59.1]} 3... Nf6 {[%clk 0:02:56.2]}
4. e3 {[%clk 0:02:59.5]} 4... e6 {[%clk 0:02:53.1]} 5. Bd3 {[%clk 0:02:57.9]}
5... Nbd7 {[%clk 0:02:50.5]} 6. O-O {[%clk 0:02:57.5]} 6... Ne4 {[%clk
0:02:46.3]} 7. Nfd2 {[%clk 0:02:50.5]} 7... f5 {[%clk 0:02:42.3]} 8. f3 {[%clk
0:02:48.2]} 8... Nef6 {[%clk 0:02:37.5]} 9. Nc3 {[%clk 0:02:43.2]} 9... g6
{[%clk 0:02:29.5]} 10. e4 {[%clk 0:02:41.6]} 10... dxe4 {[%clk 0:02:11.7]} 11.
fxe4 {[%clk 0:02:40.8]} 11... Nb6 {[%clk 0:02:11.7]} 12. Nf3 {[%clk 0:02:33.9]}
12... Bg7 {[%clk 0:02:09.7]} 13. exf5 {[%clk 0:02:15]} 13... exf5 {[%clk
0:02:04.4]} 14. Re1+ {[%clk 0:02:13]} 14... Kf8 {[%clk 0:02:01.2]} 15. Bf4
{[%clk 0:02:07.5]} 15... h6 {[%clk 0:01:41.6]} 16. Ne5 {[%clk 0:01:40.1]} 16...
Kg8 {[%clk 0:01:30.4]} 17. Nxg6 {[%clk 0:01:36]} 17... Kh7 {[%clk 0:01:30.7]}
18. Nxh8 {[%clk 0:01:33.6]} 18... Bxh8 {[%clk 0:01:30.5]} 19. Be5 {[%clk
0:01:24.2]} 19... Kg8 {[%clk 0:01:12.1]} 20. Qf3 {[%clk 0:01:22.1]} 20... Ng4
{[%clk 0:01:09.1]} 21. Bxh8 {[%clk 0:01:03.3]} 21... Kxh8 {[%clk 0:01:10]} 22.
Qf4 {[%clk 0:01:02.8]} 22... Qg5 {[%clk 0:01:07.4]} 23. Qxg5 {[%clk 0:00:58.1]}
23... hxg5 {[%clk 0:01:08.3]} 24. Re8+ {[%clk 0:00:56.8]} 24... Kg7 {[%clk
0:01:08.9]} 25. Rae1 {[%clk 0:00:55.2]} 25... f4 {[%clk 0:01:05.4]} 26. c5
{[%clk 0:00:44.5]} 26... Nd5 {[%clk 0:01:04.7]} 27. Nxd5 {[%clk 0:00:43.7]}
27... cxd5 {[%clk 0:01:05.6]} 28. R1e7+ {[%clk 0:00:36.7]} 28... Kf6 {[%clk
0:01:06]} 29. Rc7 {[%clk 0:00:29.1]} 29... Bf5 {[%clk 0:00:56.4]} 30. Rxa8
{[%clk 0:00:28.3]} 30... Bxd3 {[%clk 0:00:56.7]} 31. Rxb7 {[%clk 0:00:27.9]}
31... Ne3 {[%clk 0:00:55.5]} 32. c6 {[%clk 0:00:26.5]} 32... Ba6 {[%clk
0:00:46.8]} 33. Rbxa7 {[%clk 0:00:24.2]} 33... Bc4 {[%clk 0:00:46.3]} 34. c7
{[%clk 0:00:23.5]} 34... f3 {[%clk 0:00:46.9]} 35. gxf3 {[%clk 0:00:22.6]} 1-0

[Event "*** SCC Grand Prix: Titled Tuesday Blitz"]
[Site "Chess.com"]
[Date "2020.06.02"]
[Round "1"]
[White "Doukis"]
[Black "eljanov"]
[Result "0-1"]
[WhiteElo "2412"]
[BlackElo "2827"]
[TimeControl "180+1"]
[EndTime "10:06:20 PDT"]
[Termination "eljanov won by resignation"]

1. d4 {[%clk 0:03:00.1]} 1... Nf6 {[%clk 0:02:59.6]} 2. c4 {[%clk 0:03:00.3]}
2... e6 {[%clk 0:02:59.8]} 3. Nc3 {[%clk 0:02:59.7]} 3... Bb4 {[%clk 0:02:59.7]}
4. a3 {[%clk 0:03:00.2]} 4... Bxc3+ {[%clk 0:02:59.5]} 5. bxc3 {[%clk
0:03:01.1]} 5... c5 {[%clk 0:02:57.4]} 6. e3 {[%clk 0:03:01.4]} 6... Qa5 {[%clk
0:02:55.4]} 7. Bd2 {[%clk 0:02:59.9]} 7... Ne4 {[%clk 0:02:54.8]} 8. Bd3 {[%clk
0:02:55]} 8... Nxd2 {[%clk 0:02:53.7]} 9. Qxd2 {[%clk 0:02:55.9]} 9... Nc6
{[%clk 0:02:50.9]} 10. Nf3 {[%clk 0:02:37.3]} 10... d6 {[%clk 0:02:51.2]} 11.
O-O {[%clk 0:02:32.2]} 11... O-O {[%clk 0:02:47.4]} 12. Qc2 {[%clk 0:02:21]}
12... h6 {[%clk 0:02:45.5]} 13. a4 {[%clk 0:02:05]} 13... Qc7 {[%clk 0:02:39.8]}
14. Nd2 {[%clk 0:01:59.1]} 14... b6 {[%clk 0:02:30.7]} 15. f4 {[%clk 0:01:53.3]}
15... Na5 {[%clk 0:01:54]} 16. d5 {[%clk 0:01:45.7]} 16... exd5 {[%clk 0:01:38]}
17. cxd5 {[%clk 0:01:46.6]} 17... c4 {[%clk 0:01:38.4]} 18. Be4 {[%clk
0:01:17.4]} 18... Qc5 {[%clk 0:01:34.3]} 19. Rae1 {[%clk 0:01:16.1]} 19... Bb7
{[%clk 0:01:31.5]} 20. Nf3 {[%clk 0:00:55.2]} 20... Bxd5 {[%clk 0:01:20.4]} 21.
Nd4 {[%clk 0:00:55.4]} 21... Bxe4 {[%clk 0:01:16.5]} 22. Qxe4 {[%clk 0:00:56.3]}
22... Rfe8 {[%clk 0:01:17]} 23. Qf3 {[%clk 0:00:52.7]} 23... Nb3 {[%clk
0:01:14.9]} 24. f5 {[%clk 0:00:51.7]} 24... Nd2 {[%clk 0:01:11.6]} 25. Qg4
{[%clk 0:00:50.8]} 25... Nxf1 {[%clk 0:01:11.9]} 26. Kxf1 {[%clk 0:00:34.8]}
26... Qe5 {[%clk 0:01:09.2]} 27. Kg1 {[%clk 0:00:33.5]} 27... d5 {[%clk
0:01:08.5]} 28. h4 {[%clk 0:00:31.1]} 28... Qf6 {[%clk 0:01:05.5]} 29. Qg3
{[%clk 0:00:22.8]} 29... Re4 {[%clk 0:01:04.2]} 30. h5 {[%clk 0:00:16]} 30...
Rae8 {[%clk 0:01:03.9]} 31. Qf3 {[%clk 0:00:09.2]} 31... Qg5 {[%clk 0:00:57]}
32. Re2 {[%clk 0:00:08.7]} 0-1

[Event "*** SCC Grand Prix: Titled Tuesday Blitz"]
[Site "Chess.com"]
[Date "2020.06.02"]
[Round "1"]
[White "Mikhal867"]
[Black "MatyChess1"]
[Result "1-0"]
[WhiteElo "2277"]
[BlackElo "2584"]
[TimeControl "180+1"]
[EndTime "10:06:20 PDT"]
[Termination "Mikhal867 won by resignation"]

1. c4 {[%clk 0:02:57.3]} 1... e5 {[%clk 0:02:51.8]} 2. Nc3 {[%clk 0:02:56.4]}
2... Nc6 {[%clk 0:02:52.1]} 3. g3 {[%clk 0:02:56.4]} 3... Bc5 {[%clk 0:02:52]}
4. Bg2 {[%clk 0:02:56.4]} 4... a6 {[%clk 0:02:52.7]} 5. e3 {[%clk 0:02:55.8]}
5... d6 {[%clk 0:02:53.3]} 6. Nge2 {[%clk 0:02:55.4]} 6... Ba7 {[%clk
0:02:54.2]} 7. h3 {[%clk 0:02:54.3]} 7... Nge7 {[%clk 0:02:50.8]} 8. d3 {[%clk
0:02:50]} 8... O-O {[%clk 0:02:49.9]} 9. Rb1 {[%clk 0:02:46.9]} 9... Be6 {[%clk
0:02:49.3]} 10. Nd5 {[%clk 0:02:45.7]} 10... Qd7 {[%clk 0:02:47.9]} 11. b4
{[%clk 0:02:43.4]} 11... Nc8 {[%clk 0:02:46.6]} 12. d4 {[%clk 0:02:32.9]} 12...
exd4 {[%clk 0:02:31.6]} 13. exd4 {[%clk 0:02:29.1]} 13... Re8 {[%clk 0:02:29.3]}
14. Be3 {[%clk 0:02:27.8]} 14... Nd8 {[%clk 0:02:28]} 15. Qb3 {[%clk 0:02:17.4]}
15... b5 {[%clk 0:01:52.8]} 16. cxb5 {[%clk 0:01:57]} 16... axb5 {[%clk
0:01:48.9]} 17. Qb2 {[%clk 0:01:50.8]} 17... c6 {[%clk 0:01:45.3]} 18. Ndf4
{[%clk 0:01:49.9]} 18... Bc4 {[%clk 0:01:45.6]} 19. O-O {[%clk 0:01:43.5]} 19...
Bb8 {[%clk 0:01:43.2]} 20. d5 {[%clk 0:01:41.3]} 20... Rxa2 {[%clk 0:01:41.1]}
21. Qc1 {[%clk 0:01:33.4]} 21... cxd5 {[%clk 0:01:02.5]} 22. Nc3 {[%clk
0:01:21.2]} 22... Ra6 {[%clk 0:00:58.9]} 23. Ncxd5 {[%clk 0:01:16.6]} 23... Bxf1
{[%clk 0:00:57.5]} 24. Bxf1 {[%clk 0:01:12.1]} 24... Ba7 {[%clk 0:00:54.8]} 25.
Bxa7 {[%clk 0:01:07.1]} 25... Nxa7 {[%clk 0:00:42.1]} 26. Qc7 {[%clk 0:00:59.7]}
26... Qf5 {[%clk 0:00:07]} 27. Ne7+ {[%clk 0:00:58]} 27... Rxe7 {[%clk
0:00:06.6]} 28. Qxe7 {[%clk 0:00:57.8]} 28... h6 {[%clk 0:00:04]} 29. Qxd8+
{[%clk 0:00:57.2]} 29... Kh7 {[%clk 0:00:04.5]} 30. Bd3 {[%clk 0:00:56.5]} 1-0

[Event "*** SCC Grand Prix: Titled Tuesday Blitz"]
[Site "Chess.com"]
[Date "2020.06.02"]
[Round "1"]
[White "Maghalashvili"]
[Black "14Sokol88"]
[Result "0-1"]
[WhiteElo "2771"]
[BlackElo "2414"]
[TimeControl "180+1"]
[EndTime "10:06:21 PDT"]
[Termination "14Sokol88 won by resignation"]

1. Nf3 {[%clk 0:03:00.1]} 1... Nf6 {[%clk 0:02:55.3]} 2. g3 {[%clk 0:03:00.3]}
2... g6 {[%clk 0:02:50]} 3. Bg2 {[%clk 0:03:00.7]} 3... Bg7 {[%clk 0:02:50.1]}
4. O-O {[%clk 0:03:01.6]} 4... O-O {[%clk 0:02:49.9]} 5. c4 {[%clk 0:03:02.5]}
5... d6 {[%clk 0:02:45.8]} 6. d4 {[%clk 0:03:02.6]} 6... Bf5 {[%clk 0:02:45.7]}
7. Nc3 {[%clk 0:03:03.5]} 7... Ne4 {[%clk 0:02:45]} 8. Nxe4 {[%clk 0:02:59.9]}
8... Bxe4 {[%clk 0:02:45.9]} 9. Re1 {[%clk 0:02:59]} 9... c5 {[%clk 0:02:35.9]}
10. d5 {[%clk 0:02:52.9]} 10... Nd7 {[%clk 0:02:21.8]} 11. Bh3 {[%clk
0:02:51.3]} 11... Rb8 {[%clk 0:01:41.9]} 12. Ng5 {[%clk 0:02:42.7]} 12... Nf6
{[%clk 0:01:41.4]} 13. f3 {[%clk 0:02:29.1]} 13... Bf5 {[%clk 0:01:41.2]} 14.
Bxf5 {[%clk 0:02:28.6]} 14... gxf5 {[%clk 0:01:42.1]} 15. Qd3 {[%clk 0:02:28.9]}
15... Qd7 {[%clk 0:01:40.6]} 16. a4 {[%clk 0:02:23]} 16... e6 {[%clk 0:01:12.3]}
17. e4 {[%clk 0:02:05.6]} 17... h6 {[%clk 0:00:55.3]} 18. dxe6 {[%clk
0:01:49.2]} 18... fxe6 {[%clk 0:00:55.6]} 19. exf5 {[%clk 0:01:49.3]} 19... hxg5
{[%clk 0:00:51.5]} 20. fxe6 {[%clk 0:01:49.4]} 20... Qc6 {[%clk 0:00:44.2]} 21.
Bxg5 {[%clk 0:01:46.3]} 21... Nh7 {[%clk 0:00:43.3]} 22. e7 {[%clk 0:01:31.6]}
22... Nxg5 {[%clk 0:00:34.3]} 23. exf8=Q+ {[%clk 0:01:30.1]} 23... Rxf8 {[%clk
0:00:35.2]} 24. Qd5+ {[%clk 0:01:20.1]} 24... Qxd5 {[%clk 0:00:34]} 25. cxd5
{[%clk 0:01:21]} 25... Nxf3+ {[%clk 0:00:34]} 26. Kg2 {[%clk 0:01:21.8]} 26...
Bxb2 {[%clk 0:00:26.5]} 27. Reb1 {[%clk 0:01:16.3]} 27... Bxa1 {[%clk
0:00:25.7]} 28. Rxa1 {[%clk 0:01:16.6]} 28... Ne5 {[%clk 0:00:22.7]} 29. a5
{[%clk 0:01:11]} 29... Rb8 {[%clk 0:00:19.1]} 30. Kh3 {[%clk 0:01:00.4]} 30...
b5 {[%clk 0:00:18.2]} 31. axb6 {[%clk 0:00:59.2]} 31... axb6 {[%clk 0:00:19.1]}
32. g4 {[%clk 0:00:59.1]} 32... b5 {[%clk 0:00:18.4]} 33. Ra6 {[%clk 0:00:57.6]}
33... b4 {[%clk 0:00:17.8]} 34. Rxd6 {[%clk 0:00:56.8]} 34... b3 {[%clk
0:00:17.9]} 0-1

[Event "*** SCC Grand Prix: Titled Tuesday Blitz"]
[Site "Chess.com"]
[Date "2020.06.02"]
[Round "1"]
[White "antoszu"]
[Black "ARTHURMOTIVATOR"]
[Result "1-0"]
[WhiteElo "2542"]
[BlackElo "2192"]
[TimeControl "180+1"]
[EndTime "10:06:21 PDT"]
[Termination "antoszu won by checkmate"]

1. d4 {[%clk 0:03:00.9]} 1... g6 {[%clk 0:02:59.1]} 2. c4 {[%clk 0:03:00.3]}
2... Bg7 {[%clk 0:02:59.4]} 3. e4 {[%clk 0:03:00.7]} 3... d6 {[%clk 0:02:59.3]}
4. Nc3 {[%clk 0:03:00.6]} 4... Nc6 {[%clk 0:02:59.3]} 5. Nge2 {[%clk 0:02:57.2]}
5... e5 {[%clk 0:02:58.4]} 6. d5 {[%clk 0:02:55.9]} 6... Nd4 {[%clk 0:02:56.5]}
7. Be3 {[%clk 0:02:55.6]} 7... Nxe2 {[%clk 0:02:53.2]} 8. Bxe2 {[%clk
0:02:55.5]} 8... f5 {[%clk 0:02:53.2]} 9. exf5 {[%clk 0:02:52.3]} 9... gxf5
{[%clk 0:02:53.2]} 10. Bh5+ {[%clk 0:02:52.1]} 10... Kf8 {[%clk 0:02:53.5]} 11.
Qc2 {[%clk 0:02:45.9]} 11... Nf6 {[%clk 0:02:53.3]} 12. Be2 {[%clk 0:02:45.3]}
12... Bd7 {[%clk 0:02:45]} 13. O-O-O {[%clk 0:02:29.8]} 13... Kf7 {[%clk
0:02:24.4]} 14. f3 {[%clk 0:01:48.8]} 14... Rf8 {[%clk 0:01:57.1]} 15. Rhg1
{[%clk 0:01:33.9]} 15... Kg8 {[%clk 0:01:51.6]} 16. g4 {[%clk 0:01:34]} 16...
Kh8 {[%clk 0:01:07.5]} 17. gxf5 {[%clk 0:01:17.7]} 17... Nh5 {[%clk 0:01:07.5]}
18. Bd3 {[%clk 0:01:15.3]} 18... Qc8 {[%clk 0:00:50.8]} 19. f6 {[%clk
0:00:47.2]} 19... Nxf6 {[%clk 0:00:46.9]} 20. Qg2 {[%clk 0:00:41.1]} 20... Rf7
{[%clk 0:00:38.8]} 21. Qg5 {[%clk 0:00:39.8]} 21... Qf8 {[%clk 0:00:29]} 22. Qh4
{[%clk 0:00:37.8]} 22... Re8 {[%clk 0:00:27.4]} 23. Bg6 {[%clk 0:00:29.2]} 23...
e4 {[%clk 0:00:22.5]} 24. Nxe4 {[%clk 0:00:24.3]} 24... Nxe4 {[%clk 0:00:21.1]}
25. Qxh7# {[%clk 0:00:24.1]} 1-0